Cogmind - Beta 16.1 @@@ ROGUE MODE // 2026.04.08 @ 05:04:36 Player: zacyquack Result: Destroyed by G-34 Mercenary with Small Laser Performance ------------- Evolutions (0) 0 Regions Visited (1) 200 Robots Destroyed (13) 65 Value Destroyed (275) 275 Prototype IDs (0) 0 Alien Tech Used (0) 0 Bonus (0) 0 TOTAL SCORE: 540 Bonus ------- None Cogmind --------- Core Integrity 0/250 Matter 300/300 Energy 100/100 System Corruption 0% Temperature Cool (6) Movement Core (1350) Ox26 Location -10/Materials Parts ------- > --- POWER (1) -------- (None) > --- PROPULSION (2) --- (None) > --- UTILITY (2) ------ Huge Storage Unit Visual Processing Unit > --- WEAPON (2) ------- (None) > --- INVENTORY (25) --- Light Ion Engine Light Nuclear Core Power Shielding Backup Plating I Peak State ------------ > --- POWER ------------ Light Ion Engine > --- PROPULSION ------- Light Treads Light Treads > --- UTILITY ---------- Huge Storage Unit Visual Processing Unit > --- WEAPON ----------- Assault Rifle Grenade Launcher > --- INVENTORY -------- Light Ion Engine Light Nuclear Core Power Shielding Backup Plating I Light Assault Rifle [Rating: 8] Favorites ----------- Power Light Ion Engine Engine Light Ion Engine Propulsion Light Treads Treads Light Treads Utility Huge Storage Unit Storage Huge Storage Unit Processor Visual Processing Unit Protection Backup Plating I Weapon Assault Rifle Ballistic Gun Assault Rifle Launcher Grenade Launcher Build | -11 -10 ------- Run | Yrd Mat Slots Evolved . | . . Power . | . . Propulsion . | . . Utility . | . . Weapon . | . . Parts Attached 9 | 1 8 Power 1 | 1 . Engine 1 | 1 . Core . | . . Reactor . | . . Propulsion 2 | . 2 Treads 2 | . 2 Leg . | . . Wheel . | . . Hover . | . . Flight . | . . Utility 3 | . 3 Device . | . . Storage 2 | . 2 Processor 1 | . 1 Hackware . | . . Protection . | . . Artifact . | . . Weapon 3 | . 3 Energy Gun . | . . Energy Cannon . | . . Ballistic Gun 2 | . 2 Ballistic Cannon . | . . Launcher 1 | . 1 Special Weapon . | . . Impact Weapon . | . . Slashing Weapon . | . . Piercing Weapon . | . . Special Melee Weapon . | . . Unidentified Prototypes . | . . Parts Lost 6 | . 6 Power 1 | . 1 Propulsion 2 | . 2 Utility . | . . Weapon 3 | . 3 Highest Loss Streak 5 | . 5 To Critical Strikes . | . . Average Backups 3 | 3 3 Power 1 | . 1 Propulsion . | 1 . Utility 1 | . 1 Weapon . | . . Tool/Special . | . . Unused Backups 3 | . 3 Power 2 | . 2 Propulsion . | . . Utility 1 | . 1 Weapon . | . . Tool/Special . | . . Average Slot Usage (%) 92 | . 92 Engine 13 | . 13 Treads 26 | . 26 Storage 13 | . 13 Processor 3 | . 3 Protection 9 | . 9 Ballistic Gun 18 | . 18 Launcher 5 | . 5 Peak Build Rating 8 | 1 8 Average Rating 6 | . 6 On Entrance . | . 1 Avg Prop Armor Cover (%) . | . . Naked Turns . | . . Heaviest Build 89 | 3 89 Greatest Support 40 | 3 40 Greatest Overweight (x) 26 | . 26 Average Overweight (x) 1 | . 1 Largest Inventory Capacity 25 | 5 25 Average Capacity 22 | 5 22 Most Carried 5 | 5 5 Average Carried 3 | 4 3 Final Capacity 25 | 5 25 Final Carried 5 | 5 4 Class Distribution -------------------- 100% | Mutant Dominant Class ---------------- Mutant | -10/Materials Resources | -11 -10 ----------- Run | Yrd Mat Matter Collected 519 | 176 343 Remotely . | . . Salvage Created 377 | . 377 Parts 23 | . 23 Haulers Intercepted . | . . Recyclers Shooed . | . . Parts Field Recycled . | . . Retrieved Matter . | . . Parts Self-Destructed . | . . Prevented . | . . Parts Restored . | . . Kills | -11 -10 ------- Run | Yrd Mat Combat Hostiles Destroyed 9 | . 9 Guns 7 | . 7 AOE 2 | . 2 Classes Destroyed 6 | . 6 Worker 1 | . 1 Builder 1 | . 1 Recycler 1 | . 1 Watcher 1 | . 1 Swarmer 3 | . 3 Grunt 6 | . 6 Best Kill Streak 3 | . 3 Combat Bots Only 3 | . 3 Max Kills in Single Turn 2 | . 2 Gunslinging . | . . Exploded 2 | . 2 Melee . | . . Uniques/NPCs Destroyed . | . . Combat | -11 -10 -------- Run | Yrd Mat Hostile Shots Fired 122 | . 122 Missed 37 | . 37 Hits 85 | . 85 Projectile 85 | . 85 Damage Taken 965 | . 965 Core 257 | . 257 Absorbed by Shields . | . . Core Remaining (%) 100 | 100 . Volleys Fired 72 | . 72 Largest 2 | . 2 Hottest 50 | . 50 Shots Fired 90 | . 90 Gun 82 | . 82 Cannon . | . . Launcher 8 | . 8 Special . | . . Kinetic 82 | . 82 Thermal . | . . Explosive 8 | . 8 Electromagnetic . | . . Robot Hit Streak 11 | . 11 Robot Miss Streak 5 | . 5 Penetration Max . | . . Secondary Targets . | . . Shots Hit Robots 52 | . 52 Core Hits 23 | . 23 Critical Kills . | . . Critical Parts Destroyed . | . . Critical Strikes . | . . Melee Attacks . | . . Impact . | . . Slashing . | . . Piercing . | . . Sneak Attacks . | . . Combat Hostiles . | . . Follow-up Attacks . | . . Damage Inflicted 894 | . 894 Guns 519 | . 519 Cannons . | . . Explosions 362 | . 362 Melee . | . . Ramming 13 | . 13 Kinetic 519 | . 519 Thermal . | . . Explosive 362 | . 362 Electromagnetic . | . . Impact . | . . Slashing . | . . Piercing . | . . Highest Corruption . | . . Average Corruption . | . . Corruption Purged . | . . Corruption Blocked . | . . Overload Shots . | . . Overflow Damage 8 | . 8 Projectiles . | . . Explosions 8 | . 8 Melee . | . . Knockbacks . | . . Impact . | . . Kinetic . | . . Secondary . | . . Self-Inflicted Damage 49 | . 49 Shots 2 | . 2 Rammed 3 | . 3 Targets Rammed 3 | . 3 Kicked . | . . Crushed . | . . Highest Temperature 12 | . 12 Average Temperature 2 | . 2 Received Heat Transfer 465 | . 465 Siege Activations . | . . Martial Activations . | . . Shielding Activations . | . . Robots Disrupted . | . . Combat Hostiles . | . . Robots Corrupted . | . . Combat Hostiles . | . . Parts Fried . | . . Impact Corruptions . | . . Robots Melted . | . . Combat Hostiles . | . . Parts Melted . | . . Heat Transferred . | . . Parts Sabotaged . | . . Parts Stolen . | . . Parts Stripped . | . . Power Chain Reactions . | . . Alert | -11 -10 ------- Run | Yrd Mat Maximum Alert Level . | . . Low Security (%) 100 | 100 100 Level 1 . | . . Level 2 . | . . Level 3 . | . . Level 4 . | . . Level 5 . | . . High Security . | . . Max Security . | . . Peak Influence 70 | . 70 Initial . | . . Average 13 | . 14 Influence Increases 294 | . 294 Destroy 0b10 Robot/C 180 | . 180 Destroy 0b10 Robot/NC 20 | . 20 Destroy Leader 32 | . 32 Successful Hack 7 | . 7 Destroy Structure 55 | . 55 Influence Decreases 288 | . 288 Time Decay 228 | . 228 Lost Part 60 | . 60 Squads Dispatched 2 | . 2 Investigation 2 | . 2 Extermination . | . . Reinforcement . | . . Assault . | . . Garrison . | . . Intercept . | . . Searches Triggered . | . . Construction Impeded . | . . Haulers Reinforced . | . . Active Scanning Responses . | . . Cargo Convoy Interrupts . | . . Stealth | -11 -10 --------- Run | Yrd Mat Distress Signals 1 | . 1 Communications Jammed . | . . Distress Signals . | . . Times Spotted 24 | . 24 Peak Tracking Total 4 | . 4 Tactical Retreats . | . . Traps | -11 -10 ------- Run | Yrd Mat Traps Triggered 1 | . 1 Indirectly . | . . Trap Hack Attempts . | . . Triggered . | . . Disarmed . | . . Reprogrammed . | . . Reused . | . . Traps Extracted . | . . Installed . | . . Triggered . | . . Machines | -11 -10 ---------- Run | Yrd Mat Machines Disabled 1 | . 1 Max in Single Turn 1 | . 1 Machines Repaired . | . . Machines Dismantled . | . . Machines Sabotaged . | . . Overloaded Fab Kills . | . . Hacking | -11 -10 --------- Run | Yrd Mat Machines Accessed 6 | . 6 Terminals 5 | . 5 Fabricators . | . . Repair Stations 1 | . 1 Recycling Units . | . . Scanalyzers . | . . Garrison Access . | . . Total Hacks 14 | . 14 Successful 5 | . 5 Failed 9 | . 9 Catastrophic . | . . Database Lockouts . | . . Manual 1 | . 1 Terminals 12 | . 12 Fabricators . | . . Repair Stations 2 | . 2 Recycling Units . | . . Scanalyzers . | . . Garrison Access . | . . Terminal Hacks 4 | . 4 Branch Access Points 1 | . 1 Alert Level 1 | . 1 Reinforcement Status 1 | . 1 Recall Investigation 1 | . 1 Fabricator Hacks . | . . Repair Station Hacks 1 | . 1 Refit 1 | . 1 Recycling Unit Hacks . | . . Scanalyzer . | . . Garrison Access Hacks . | . . Unauthorized Hacks . | . . Terminals . | . . Fabricators . | . . Repair Stations . | . . Recycling Units . | . . Scanalyzers . | . . Garrison Access . | . . Data Cores Recovered . | . . Used . | . . Hacking Detections 4 | . 4 Full Trace Events 3 | . 3 Feedback Events . | . . Feedback Blocked . | . . Robot Schematics Acquired . | . . Robots Built . | . . Authchips . | . . Time . | . . Total Robot Build Rating . | . . Part Schematics Acquired . | . . Parts Built . | . . Authchips . | . . Time . | . . Total Part Build Rating . | . . Part Studies Acquired . | . . Parts Repaired . | . . Time . | . . Parts Recycled . | . . Recycled Matter . | . . Retrieved Matter . | . . Retrieved Components . | . . Parts Scanalyzed . | . . Part Schematics Acquired . | . . Parts Damaged . | . . Bothacking | -11 -10 ------------ Run | Yrd Mat Used RIF Installer . | . . Robots Hacked . | . . Non-combat . | . . Combat . | . . Robot Hacks Applied . | . . Relay Couplers Released . | . . Fabnet Peak Effective % . | . . Robots Rewired . | . . Allies Hacked . | . . Hacks Repelled . | . . Allies | -11 -10 -------- Run | Yrd Mat Total Allies . | . . Largest Group . | . . Highest-Rated Group . | . . Highest-Rated Ally . | . . Total Orders . | . . Ally Attacks . | . . Total Damage . | . . Kills . | . . Allies Corrupted . | . . Allies Melted . | . . Intel | -11 -10 ------- Run | Yrd Mat Active Infowar (turns) 372 | . 372 Optics 372 | . 372 Robot Analysis Total . | . . Derelict Logs Recovered . | . . Drone Launches . | . . Drone Recoveries . | . . Exploration | -11 -10 ------------- Run | Yrd Mat Turns Passed 1471 | 32 1439 Spaces Moved 487 | 50 437 Core 53 | 50 3 Treads 434 | . 434 Legs . | . . Wheels . | . . Hover . | . . Flight . | . . Fastest Speed 50 | 50 160 Average Speed 262 | 50 287 Slowest Speed 1350 | 50 1350 Overloaded Moves . | . . Propulsion Burnouts . | . . Robots Hopped . | . . Potential Cave-ins . | . . Cave-ins Triggered . | . . Exploration Rate (%) 35 | 3 68 Regions Visited 1 Branch Regions . Pre-discovered Areas . | . . Known Exits Taken . | . . Unknown Exits Taken 1 | 1 . Scrap Searched . | . . Spaces Dug . | . . Terrain Destroyed 56 | . 56 Melee . | . . Projectile . | . . AOE 56 | . 56 Terrain Rammed . | . . Walls Destroyed . | . . Machines Disabled . | . . Actions | -11 -10 --------- Run | Yrd Mat Total 583 | 55 528 Wait . | . . Move 486 | 49 437 Hop . | . . Pick Up 11 | 5 6 Fast Attach 1 | 1 . Attach 6 | . 6 Detach . | . . Swap 3 | . 3 Drop 1 | . 1 Fire 72 | . 72 Melee . | . . Ram 1 | . 1 Kick . | . . Crush 2 | . 2 Escape Stasis . | . . Rewire . | . . Trap . | . . Miscellaneous . | . . Route ------- -11/Scrapyard -10/Materials (discovered 3 exits: [*Mat x2] / *Min) History --------- Turn | Location | Event 4 | -11/Scrapyard | Discovered new exit (range 14) 33 | -11/Scrapyard | Entered Materials 166 | -10/Materials | Discovered new exit (range 13) 305 | -10/Materials | Build established: Mutant 875 | -10/Materials | Identified exit to Mines 964 | -10/Materials | Discovered new exit (range 16) 1328 | -10/Materials | Discovered new exit (range 16) 1421 | -10/Materials | Core integrity fell below 50% 1429 | -10/Materials | Lost 5 parts (1p2n2w) 1453 | -10/Materials | Core integrity fell below 20% 1472 | -10/Materials | Destroyed by G-34 Mercenary with Small Laser Last Messages --------------- 01390_ U-05 Engineer builds a Wall. 01391_ U-05 Engineer lays Concrete. 01393_ U-05 Engineer builds a Wall. 01394_ U-05 Engineer lays Concrete. 01395_ U-05 Engineer builds a Wall. 01397_ U-05 Engineer lays Concrete. 01397_ U-05 Engineer builds a Wall. 01398_ Acquired 36 matter. 01398_ Lgt. Treads destroyed. 01400_ U-05 Engineer lays Concrete. 01401_ U-05 Engineer builds a Door. 01402_ U-05 Engineer builds a Wall. 01405_ U-05 Engineer lays Concrete. 01406_ R-06 Scavenger collects Sml. Laser. 01438_ Lgt. Assault Rifle destroyed. 01439_ Acquired 8 matter. 01454_ M-13 Machinist repairs G-34 Mercenary. 01456_ M-13 Machinist repairs G-34 Mercenary Aluminum Leg. 01466_ Slammed into G-34 Mercenary. Map ----- +----------------------------------------------------+ | | | | | | | ????????????????????????????????????? | | ????????????????????????????????????? | | ????????????????????????????????????? | | ????????????????????????????????????? | | ????????????????????????????????????? | | ????????????????????????????????????? | | ????????????????????????????????????? | | ????????????????????????????????????? | | ????????????????????????????????????? | | ????????????????????????????????????? | | ????????????????????????????????????? | | ????????????????????????#####???????? | | ????????????????????????# #???????? | | ????????????????????????# < #???????? | | ????????????????????????# #???????? | | ????????????????????????# +???????? | | ???????????????????????## #???????? | | ???????????????????????## #???????? | | ???????????????????????## #???????? | | ???????????????????????## #???????? | | ???????????????????????## #???????? | | ????????????????????????# #???????? | | ????????????????###?????#@ ######### | | ?????? ??? ????##!!!????#g% ## # | | ?????? """ ????#! ???# ## ! # | | ?????? """ ???# ?## ## ! # | | ?????? # ## # # | | ?????? # " # | | ?????? " + T # | | ??????? * # " # | | ??????? ?############# # # | | ???????# #????? ????######+########## | | ???????# #?????!!???#! #??? | | ####???# #####!!!???# """" """ #??? | | ##### #!! ??# """" "T" #??? | | # ## """" #??? | | T + """ ## #??? | | # """ #####+############ | | "##### # """ #???# #?# ! # | | ! "#???## ## #??## ### ""# | | "#????# ##+######### ### !!! T"# | | ####????# # !!! ""# | | ????????# + !!! # | | ????????# =% # # | | ??????####+############### # # | | ??????# #??# # # / # | | ??????# T #??######## # # | +----------------------------------------------------+ Best States ------------- Heat Dissipation 25 Energy Generation 10 Energy Capacity 125 Matter Stores 300 Matter Capacity 300 Sight Range 18 Terrain Scan Density 10 Armor Coverage 80 Evasion (%) 50 Recoil Reduction 2 Item Schematics ----------------- None Robot Schematics ------------------ None Fabricated ------------ Nothing Repaired ---------- Nothing Studied --------- None Alien Tech Used ----------------- None Achievements -------------- None Challenges ------------ None Game ------ Seed DispersalImpulseReplicator Manual? 0 Play Time 00:10:56 Cumulative 6.7 hours Start 2026.04.08 @ 04:57:13 End 2026.04.08 @ 05:04:36 Sessions 1 Manual Loads 0 Difficulty Rogue Special Mode None Game No. 8 Rogue 8 Adventurer 0 Explorer 0 Win Type - Total 0 Types 0/0/0/0/0/0/0/0/0/0 Lore% 9 Gallery% 11 Achievement% 10 Wizard Run 0 Options --------- Layout 1 ASCII 0 Keyboard 0 Movement Mouse Keybinds 0 Fullscreen 1 Font 32/SmallcapsGlow Map View 50x35 Zoom Use 0% Tactical HUD 1 Map Filters NONE Filters NONE Steam 1 RUN: cbe7fc33-3941-416a-9ce4-7d43e143f6fd